Cogmind - Beta 15 @@@ ROGUE MODE // 2025.05.30 @ 12:40:46 Player: Demo Result: Destroyed by A-27 Freighter with PD Laser Performance ------------- Evolutions (6) 3000 Regions Visited (17) 3400 Robots Destroyed (274) 1370 Value Destroyed (9761) 9761 Prototype IDs (49) 980 Alien Tech Used (1) 200 Bonus (1296) 1296 TOTAL SCORE: 20007 Bonus ------- High Alert Combat Kills 523 Follower Combat Kills 99 Entered DSFs 500 Met Data Miner 300 Friendly Fire -126 Cogmind --------- Core Integrity 0/1150 Matter 283/300 Energy 89/100 System Corruption 51% Temperature Cool (12) Movement Core (50) Location -4/Factory Parts ------- > --- POWER (1) -------- (None) > --- PROPULSION (6) --- (None) > --- UTILITY (8) ------ 0b10 Decoder Chip [Looter] > --- WEAPON (4) ------- Plasma Sword > --- INVENTORY (5) ---- Advanced Heat Sink Advanced Energy Well (500) Tactical Coordination Suite Experimental Thermal Shield Tesla Bomb Launcher Peak State ------------ > --- POWER ------------ Multi-Antimatter Reactor > --- PROPULSION ------- Hovering Gravjet-FC Exoskeleton > --- UTILITY ---------- Armored Scrap Engine Advanced Cooling System Huge Storage Unit Enhanced Optical Array Improved Armor Integrity Analyzer Advanced Weapon Cycler Advanced Cloaking Device > --- WEAPON ----------- 8R-AWN's Boregun Hpw. Thermal Construct/G Hyp. Kinetic Coil Construct/G > --- INVENTORY -------- Centrium Wheel Centrium Wheel Advanced Power Amplifier Improved Cryofiber Web Advanced Heat Sink Advanced Cooling System Huge Storage Unit Advanced Energy Well Advanced Matter Compressor 0b10 Decoder Chip [Looter] Advanced Targeting Computer Tactical Coordination Suite Heavy Servo Lattice Transmission Jammer Damper Plating Experimental Thermal Shield Dynamic Insulation System Heart of Steel AS-neutralizer No. 17b Tesla Bomb Launcher [Rating: 144] Favorites ----------- Power Light Nuclear Core Engine Improved Ion Engine Power Core Light Nuclear Core Reactor Constructs Propulsion Wheel Treads Light Treads Leg Advanced Myomer Leg Wheel Wheel Hover Unit Constructs Flight Unit VTOL Module Utility High-capacity Storage Unit Device Armored Scrap Engine Storage High-capacity Storage Unit Processor Enhanced Optical Array Hackware System Shield Protection Light Armor Plating Weapon Constructs Energy Gun Constructs Energy Cannon Constructs Ballistic Gun 8R-AWN's Boregun Ballistic Cannon Light Cannon Launcher Shock Bomb Launcher Special Weapon CPS Tube Slashing Weapon Plasma Sword Special Melee Weapon Improved Datajack Build | -11 -10 -10 -10 -9 -8 -8 -8 -6 -6 -6 -6 -5 -5 -5 -4 -4 -4 ------- Run | Yrd Mat Min Exi Min Mat Sto Rec Fac Low Low Dat Pro Fac DSF Fac Was Fac Slots Evolved 12 | . . . . . 4 . . 4 . . . . 2 . 2 . . Power . | . . . . . . . . . . . . . . . . . . Propulsion 4 | . . . . . 1 . . 2 . . . . 1 . . . . Utility 6 | . . . . . 3 . . 1 . . . . 1 . 1 . . Weapon 2 | . . . . . . . . 1 . . . . . . 1 . . Parts Attached 164 | 4 7 5 17 11 32 14 4 22 1 1 7 1 . 6 11 2 19 Power 14 | . 1 1 . 2 2 3 . 3 . . 1 . . . . . 1 Engine 6 | . 1 . . 1 1 . . 3 . . . . . . . . . Core 7 | . . 1 . 1 1 3 . . . . . . . . . . 1 Reactor 1 | . . . . . . . . . . . 1 . . . . . . Propulsion 39 | 2 2 2 5 6 9 7 . 2 . . . . . . . . 4 Treads 5 | 1 1 . . 1 2 . . . . . . . . . . . . Leg 3 | . . . 2 . 1 . . . . . . . . . . . . Wheel 27 | 1 1 2 3 4 5 5 . 2 . . . . . . . . 4 Hover 3 | . . . . 1 1 1 . . . . . . . . . . . Flight 1 | . . . . . . 1 . . . . . . . . . . . Utility 75 | 1 3 . 6 2 10 1 4 14 1 1 5 1 . 5 10 2 9 Device 34 | 1 1 . 4 1 3 . 1 5 1 1 1 . . 4 6 1 4 Storage 7 | . 1 . . . . . . 1 . . 2 . . . 2 . 1 Processor 14 | . . . . . 3 . . 4 . . . 1 . 1 1 1 3 Hackware 6 | . . . . . 1 . 3 2 . . . . . . . . . Protection 14 | . 1 . 2 1 3 1 . 2 . . 2 . . . 1 . 1 Artifact . | . . . . . . . . . . . . . . . . . . Weapon 36 | 1 1 2 6 1 11 3 . 3 . . 1 . . 1 1 . 5 Energy Gun 13 | 1 1 1 1 . 8 1 . . . . . . . . . . . Energy Cannon 7 | . . . . . 1 1 . 1 . . 1 . . 1 . . 2 Ballistic Gun 4 | . . 1 2 1 . . . . . . . . . . . . . Ballistic Cannon 2 | . . . 1 . . . . 1 . . . . . . . . . Launcher 5 | . . . 2 . 1 1 . . . . . . . . . . 1 Special Weapon 2 | . . . . . 1 . . . . . . . . . 1 . . Impact Weapon . | . . . . . . . . . . . . . . . . . . Slashing Weapon 2 | . . . . . . . . . . . . . . . . . 2 Piercing Weapon . | . . . . . . . . . . . . . . . . . . Special Melee Weapon 1 | . . . . . . . . 1 . . . . . . . . . Unidentified Prototypes 26 | . . . 5 . 5 2 1 2 . . 3 . . . 3 . 5 Corrupted Parts 6 | . . . . . . . 3 2 . . . . . . . 1 . System Corruption 13 | . . . . . . . 7 3 . . . . . . . 3 . Parts Lost 62 | . . 2 5 4 1 4 . 7 1 . 4 2 . 2 6 . 24 Power 5 | . . . . . . . . 2 . . 1 . . . . . 2 Propulsion 22 | . . 1 4 2 . 3 . 2 . . 1 . . 1 . . 8 Utility 16 | . . . 1 1 1 1 . 2 . . . 1 . . 3 . 6 Weapon 19 | . . 1 . 1 . . . 1 1 . 2 1 . 1 3 . 8 Highest Loss Streak 9 | . . 1 3 4 1 2 . 2 1 . 4 1 . 1 2 . 9 To Critical Strikes 2 | . . . . . . . . . . . . . . 1 . . 1 Average Backups 18 | 3 11 18 15 19 18 19 19 20 22 22 21 22 21 22 20 19 19 Power . | . . . . . . 1 1 1 . . . . 1 1 . . . Propulsion 2 | 1 5 5 2 3 4 5 4 1 1 1 . . . . 1 2 1 Utility 10 | 1 5 8 7 10 7 7 8 12 15 15 15 16 16 17 15 14 15 Weapon 4 | . . 4 6 5 5 5 6 4 3 3 2 1 . . 1 1 1 Tool/Special . | . . . . . . . . . . . . . . . . . . Unused Backups 53 | 5 6 4 2 1 12 1 2 2 2 1 1 . . . 6 . 8 Power 3 | . . . . . 1 1 . . . . . . . . 1 . . Propulsion 6 | 2 1 . . . . . 2 . . . . . . . 1 . . Utility 35 | 2 4 3 2 1 5 . . 2 2 1 1 . . . 4 . 8 Weapon 9 | 1 1 1 . . 6 . . . . . . . . . . . . Tool/Special . | . . . . . . . . . . . . . . . . . . Average Slot Usage (%) 77 | . 84 99 80 98 99 99 82 67 65 66 56 59 55 61 66 61 57 Engine 2 | . 4 2 . 11 7 . . 4 . 6 1 . . . . . . Core 3 | . . 11 4 2 1 9 9 1 5 . . . . 4 . 2 . Reactor 1 | . . . . . . . . . . . 4 6 3 . 4 2 4 Treads 1 | . 1 . 8 . . . 1 . . . . . . . . . 2 Wheel 13 | . 26 27 19 22 26 26 11 7 6 6 2 6 . . . 5 4 Device 10 | . 10 . 1 10 9 9 8 17 10 18 19 12 11 12 19 21 18 Storage 9 | . 12 14 13 14 9 9 9 6 6 6 6 6 5 5 5 5 5 Processor 5 | . . . . . 8 9 9 3 13 7 6 7 11 11 8 9 9 Hackware 2 | . . . . . 8 9 8 3 . . . . . . . . . Protection 5 | . 3 14 12 3 8 9 3 . 2 . . 4 5 3 2 . . Energy Gun 6 | . 22 15 6 13 9 8 9 3 . . . . 5 5 . . 1 Energy Cannon 4 | . . . . . 2 8 8 7 6 2 2 4 . 2 7 1 3 Ballistic Gun 5 | . . 11 12 14 5 . . . . 3 2 4 5 4 8 8 2 Ballistic Cannon 1 | . . . . . . . . 4 9 13 5 . . . . 3 . Peak Build Rating 144 | 4 9 11 37 31 38 39 57 80 77 80 100 104 90 108 135 138 144 Average Rating 53 | 3 6 10 16 19 29 35 47 70 74 78 80 86 87 100 114 119 118 On Entrance 55 | . 4 9 11 14 17 36 37 57 73 75 80 81 82 84 101 95 138 Naked Turns . | . . . . . . . . . . . . . . . . . . Heaviest Build 145 | 3 51 51 55 70 60 63 62 121 125 120 121 118 119 120 145 120 127 Greatest Support 217 | 3 20 20 60 60 30 32 51 75 81 81 108 112 112 80 144 144 217 Greatest Overweight (x) 15 | . 2 2 15 5 2 2 4 4 1 1 1 1 1 1 2 . 3 Average Overweight (x) 1 | . 1 2 2 1 1 1 1 1 1 1 1 . 1 1 . . . Largest Inventory Capacity 25 | 5 20 20 20 20 20 20 20 25 25 25 25 25 25 25 25 25 25 Average Capacity 21 | 5 19 20 19 20 20 20 20 21 25 25 25 25 25 25 25 25 24 Most Carried 25 | 5 20 20 20 20 20 20 20 24 25 25 25 25 24 25 25 25 25 Average Carried 20 | 3 11 19 16 19 18 19 19 20 24 24 24 24 23 24 23 21 23 Final Capacity 25 | 5 20 20 20 20 20 20 20 25 25 25 25 25 25 25 25 25 5 Final Carried 25 | 5 20 20 20 20 20 20 20 23 25 25 25 24 24 25 23 25 5 Scrap Engine Consumption 277 | . . . . . . . 37 47 12 8 9 10 12 20 50 17 55 Constructs Created 15 | . . . . . . . 1 3 2 . . . . 2 4 . 3 Constructs Modified 86 | . . . . . . . 8 16 1 1 9 4 1 3 24 3 16 Class Distribution -------------------- 36% | Mutant 34% | Construct 15% | Scavenger-Mutant 7% | Commander-Construct 5% | Commander-Mutant Dominant Class ---------------- Mutant | -10/Materials Scavenger-Mutant | -10/Mines Mutant | -10/Exiles Scavenger-Mutant | -9/Mines Scavenger-Mutant | -8/Materials Mutant | -8/Storage Commander-Construct | -8/Recycling Construct | -6/Factory Construct | -6/Lower Caves Construct | -6/Lower Caves Construct | -6/Data Miner Construct | -5/Proximity Caves Construct | -5/Factory Construct | -5/DSF Construct | -4/Factory Construct | -4/Waste Construct | -4/Factory Resources | -11 -10 -10 -10 -9 -8 -8 -8 -6 -6 -6 -6 -5 -5 -5 -4 -4 -4 ----------- Run | Yrd Mat Min Exi Min Mat Sto Rec Fac Low Low Dat Pro Fac DSF Fac Was Fac Matter Collected 10226 | 240 510 65 1468 808 798 278 122 1261 263 118 371 415 104 237 1117 800 1251 Remotely . | . . . . . . . . . . . . . . . . . . Salvage Created 14888 | 198 306 81 134 255 1297 1474 566 2535 158 308 421 786 258 593 1842 1709 1967 Parts 625 | 16 12 8 9 17 78 58 33 88 7 8 21 37 15 18 78 30 92 Haulers Intercepted 15 | . 1 . . . 3 3 . 4 . . . . . . 2 . 2 Recyclers Shooed 24 | . 2 . . 1 3 . 1 14 . . . . . . . . 3 Parts Field Recycled . | . . . . . . . . . . . . . . . . . . Retrieved Matter . | . . . . . . . . . . . . . . . . . . Parts Self-Destructed 48 | . . . . . . . . . 2 5 . 41 . . . . . Prevented . | . . . . . . . . . . . . . . . . . . Kills | -11 -10 -10 -10 -9 -8 -8 -8 -6 -6 -6 -6 -5 -5 -5 -4 -4 -4 ------- Run | Yrd Mat Min Exi Min Mat Sto Rec Fac Low Low Dat Pro Fac DSF Fac Was Fac Combat Hostiles Destroyed 176 | . 5 2 8 4 20 25 6 25 1 3 4 12 3 5 23 6 24 Melee 3 | . . . . . . . . . . . . . . . . . 3 Guns 60 | . 5 2 3 2 8 11 2 . . . 3 2 3 3 7 4 5 Cannons 63 | . . . 1 . 4 9 4 13 . 2 1 10 . 1 8 2 8 AOE 39 | . . . 4 2 7 5 . 10 . . . . . 1 3 . 7 Classes Destroyed 22 | 2 4 1 1 1 3 . 2 2 2 . . . . 1 1 1 1 Worker 26 | . 1 1 . . 5 3 . 9 . . . . . . 1 . 6 Builder 22 | . 1 . . 2 3 1 2 7 . . . . . . 3 . 3 Tunneler 14 | 5 . . . 2 . . . 3 . . . . . . 2 . 2 Hauler 15 | . 1 . . . 3 3 . 4 . . . . . . 2 . 2 Recycler 18 | 1 . . . 1 3 . 2 8 . . . . . . 1 . 2 Mechanic 1 | . . . . . . . . 1 . . . . . . . . . Operator 2 | . . . . . 1 . . . . . . . . . 1 . . Watcher 7 | . . . . . 3 1 . . . . . . . . 3 . . Swarmer 30 | . . 1 . 2 7 3 . 10 . . . 5 . . 2 . . Saboteur 1 | . . . . . . . . . . . . . . . . . 1 Grunt 63 | . 5 1 . . 7 16 . 11 . . . 5 . 1 5 . 12 Brawler 1 | . . . . . . . . . . . . . . . 1 . . Sentry 25 | . . . . 2 5 5 4 2 . . . . 3 . 3 . 1 Specialist 2 | . . . . . . . . . . . . . . 2 . . . Hunter 13 | . . . . . 1 1 . . . 2 . 2 . 2 2 . 3 Programmer 19 | . . . . . . . . 2 . 1 . . . . 9 . 7 Behemoth 2 | . . . . . . . . . 1 . . . . . 1 . . Compactor 6 | . . . . . . . . . . . . . . . . 6 . Enhanced Grunt 4 | . . . . . . . . . . . 4 . . . . . . Scientist 2 | . . . . . . . 2 . . . . . . . . . . Scrapper 2 | . . . . . . . 2 . . . . . . . . . . Decomposer 4 | . . . . . . . . . 2 . . 2 . . . . . Tinkerer 1 | . . . . . . . . . 1 . . . . . . . . Assembled 7 | . . . 7 . . . . . . . . . . . . . . Best Kill Streak 9 | 6 2 1 6 3 6 5 3 8 1 3 2 5 2 2 6 3 9 Combat Bots Only 6 | . 2 1 6 2 4 5 2 4 1 3 2 5 2 2 4 3 5 Max Kills in Single Turn 4 | 1 2 1 2 1 4 3 1 4 1 1 1 1 1 1 3 1 4 Gunslinging . | . . . . . . . . . . . . . . . . . . Exploded 4 | . . . 2 1 4 3 . 3 . . . . . 1 2 . 3 Melee 1 | . . . . . . . . . . . . . . . . . 1 Uniques/NPCs Destroyed 1 | . . . 1 . . . . . . . . . . . . . . 8R-AWN (-10/Exiles) Combat | -11 -10 -10 -10 -9 -8 -8 -8 -6 -6 -6 -6 -5 -5 -5 -4 -4 -4 -------- Run | Yrd Mat Min Exi Min Mat Sto Rec Fac Low Low Dat Pro Fac DSF Fac Was Fac Hostile Shots Fired 1334 | . 20 16 22 31 62 101 4 169 6 36 33 82 20 51 172 . 509 Missed 424 | . 6 3 5 6 18 33 . 58 2 11 10 23 4 17 56 . 172 Hits 910 | . 14 13 17 25 44 68 4 111 4 25 23 59 16 34 116 . 337 Melee 13 | . . . 12 . . . . . . . . . . . . . 1 Projectile 897 | . 14 13 5 25 44 68 4 111 4 25 23 59 16 34 116 . 336 AOE 3 | . . . . . . . . . . . . . . . . . 3 Critical Strikes 37 | . . . . 2 . 3 . 2 . 1 . 3 . 1 6 . 19 Part Disruptions 2 | . . . . . . . . . . . . . . . . . 2 Damage Taken 18192 | . 152 149 519 383 645 885 93 1523 107 442 1060 891 381 927 2744 . 7291 Core 2250 | . . . 25 66 89 174 33 222 . 22 179 85 69 134 307 . 845 Absorbed by Shields 288 | . . . . . . 72 14 . . . . . . 78 124 . . Reduced by Siege Mode 54 | . . . . . . . . . . . . . . . . . 54 Ignored by Resistances 501 | . . . . . 10 46 . . . . . 177 . . . . 268 Regen/Repaired (Parts) 4390 | . . . . . . 35 5 343 89 59 326 77 148 160 930 441 1777 Core Remaining (%) 65 | 100 . . . 63 . . 46 . . . . 40 . 79 . . . Volleys Fired 963 | 28 26 12 175 30 95 86 25 131 9 21 44 36 12 21 91 25 96 Largest 4 | 1 2 2 2 2 2 2 2 3 2 3 3 3 2 3 4 4 3 Hottest 373 | 50 80 80 100 73 136 136 136 197 101 150 271 124 97 187 213 146 373 Shots Fired 1727 | 28 48 23 221 45 160 154 41 241 14 36 60 65 24 57 284 72 154 Gun 1031 | 28 48 23 211 43 119 77 19 40 . 2 35 33 24 46 149 50 84 Cannon 655 | . . . 4 . 34 70 21 191 14 34 25 29 . 11 134 21 67 Launcher 39 | . . . 6 2 7 7 1 10 . . . 3 . . . . 3 Special 2 | . . . . . . . . . . . . . . . 1 1 . Kinetic 637 | . . 10 113 26 50 . . 70 9 19 58 33 12 36 73 46 82 Thermal 993 | 28 48 13 102 17 103 147 40 136 5 17 2 29 . 11 210 25 60 Explosive 26 | . . . 6 2 7 2 . 6 . . . 3 . . . . . Electromagnetic 69 | . . . . . . 5 1 29 . . . . 12 10 . . 12 Robot Hit Streak 19 | 12 12 5 7 10 10 16 8 14 8 8 6 14 7 7 19 8 8 Robot Miss Streak 8 | 2 2 2 5 2 2 4 2 8 2 5 4 3 1 3 5 3 4 Penetration Max 2 | . . . . . . . . . . . . 2 . . 1 1 . Secondary Targets 1 | . . . . . . . . . . . . . . 1 . . . Max Gunslinging Chain 1 | . . . . . . . . . . . . . . 1 . . . Shots Hit Robots 1015 | 19 36 14 91 31 96 101 20 147 11 20 36 37 13 33 147 46 117 Core Hits 556 | 7 16 5 40 13 54 50 14 127 7 13 14 24 5 12 77 15 63 Critical Kills 20 | . . . . . . . . . . . 2 4 3 1 5 3 2 Critical Parts Destroyed 15 | . . . . . . . . . . . 4 3 1 2 1 2 2 Critical Strikes 86 | 1 2 . 17 . 8 11 1 2 . . 9 9 5 3 6 7 5 Burn 29 | 1 2 . 5 . 8 11 1 1 . . . . . . . . . Meltdown 6 | . . . . . . . . . . . . . . . 5 . 1 Destroy 49 | . . . 12 . . . . . . . 9 9 5 3 1 7 3 Corrupt 1 | . . . . . . . . 1 . . . . . . . . . Sever 1 | . . . . . . . . . . . . . . . . . 1 Melee Attacks 30 | . . . . . . . . . . . . . . . . . 30 Impact . | . . . . . . . . . . . . . . . . . . Slashing 30 | . . . . . . . . . . . . . . . . . 30 Piercing . | . . . . . . . . . . . . . . . . . . Sneak Attacks 7 | . . . . . . . . . . . . . . . . . 7 Combat Hostiles . | . . . . . . . . . . . . . . . . . . Follow-up Attacks 4 | . . . . . . . . . . . . . . . . . 4 Damage Inflicted 31697 | 236 407 146 1460 472 2225 2782 560 5667 240 559 912 1511 284 802 5244 1501 6689 Guns 11473 | 236 407 146 1090 364 1278 1112 254 624 . . 410 531 284 473 2196 787 1281 Cannons 11567 | . . . 16 . 420 1081 285 2984 240 559 502 543 . 225 2000 714 1998 Explosions 7361 | . . . 354 108 527 589 21 2059 . . . 437 . 104 1022 . 2140 Melee 1239 | . . . . . . . . . . . . . . . . . 1239 Ramming 57 | . . . . . . . . . . . . . . . 26 . 31 Kinetic 8854 | . . 49 639 198 489 . . 1225 130 274 850 531 164 311 981 1047 1966 Thermal 14800 | 236 407 97 467 166 1209 2244 539 2383 110 285 62 543 . 329 4049 454 1220 Explosive 4778 | . . . 354 108 527 271 . 1483 . . . 437 . . . . 1598 Electromagnetic 1969 | . . . . . . 267 21 576 . . . . 120 162 188 . 635 Impact . | . . . . . . . . . . . . . . . . . . Slashing 1239 | . . . . . . . . . . . . . . . . . 1239 Piercing . | . . . . . . . . . . . . . . . . . . Highest Corruption 51 | . 2 2 13 13 2 2 9 3 3 3 3 3 . . 11 38 51 Average Corruption 9 | . 2 2 9 13 2 2 3 2 3 3 3 3 . . 6 26 44 Corruption Purged 2 | . . . . . . . . . . . . . . . . . 2 Corruption Blocked . | . . . . . . . . . . . . . . . . . . Effects 429 | . 5 10 123 33 9 12 48 12 13 11 10 12 . . 28 17 86 Message Errors 93 | . 1 2 28 6 1 1 16 1 3 3 4 2 . . 7 3 15 Matter Fused 97 | . 1 2 27 8 . 2 15 5 3 1 3 4 . . 8 2 16 Heat Flow Errors 32 | . . . 11 2 1 1 3 . 1 1 . 2 . . 1 . 9 Energy Discharges 67 | . 2 2 20 8 3 5 3 2 3 3 1 . . . 3 2 10 Parts Rejected 4 | . . . . . . . . 1 . . . . . . . 1 2 Parts Fused 6 | . . 1 1 . . . 1 . . 1 . . . . . 2 . Data Loss (minor) 55 | . 1 2 19 3 2 2 7 2 1 1 . 1 . . . 2 12 Data Loss (major) 25 | . . . 8 1 . . 2 1 1 . . 2 . . 2 1 7 Misfires 13 | . . . 6 1 2 1 1 . . . 2 . . . . . . Alerts 7 | . . . . 1 . . . . 1 1 . 1 . . 2 . 1 Misdirections 8 | . . . . . . . . . . . . . . . 1 . 7 Weapon Failures 22 | . . 1 3 3 . . . . . . . . . . 4 4 7 Overload Shots 7 | . . . . . . . . 6 . . 1 . . . . . . Overflow Damage 914 | . . . 3 4 22 80 . 206 21 2 . 26 . 7 38 . 505 Projectiles 487 | . . . . . . 51 . 75 21 2 . 26 . 7 20 . 285 Explosions 299 | . . . 3 4 22 29 . 131 . . . . . . 18 . 92 Melee 128 | . . . . . . . . . . . . . . . . . 128 Knockbacks 41 | . . . . . . . . 7 . 2 9 . . . 8 . 15 Impact . | . . . . . . . . . . . . . . . . . . Kinetic 38 | . . . . . . . . 7 . 2 8 . . . 7 . 14 Secondary 3 | . . . . . . . . . . . 1 . . . 1 . 1 Self-Inflicted Damage 392 | . . . . . 27 6 . 8 . . . 37 . . 159 . 155 Shots 9 | . . . . . 1 1 . 1 . . . 1 . . 3 . 2 Rammed 2 | . . . . . . . . . . . . . . . 2 . . Targets Rammed 5 | . . . . . . . . . . . . . . . 2 . 3 Kicked 3 | . . . . . . . . . . . . . . . . . 3 Crushed . | . . . . . . . . . . . . . . . . . . Highest Temperature 863 | 25 238 260 343 281 330 216 189 392 228 50 114 197 198 175 213 152 863 Average Temperature 78 | 25 73 113 76 100 51 78 48 134 96 50 38 48 94 60 65 29 126 Received Heat Transfer 2699 | . 84 51 20 126 279 447 42 474 12 . . 306 81 24 300 . 453 Effects 13 | . . 1 4 . 1 . . 2 . . . . . . . . 5 Shutdowns 2 | . . . . . 1 . . 1 . . . . . . . . . Energy Bleed 6 | . . 1 1 . . . . 1 . . . . . . . . 3 Matter Decay 2 | . . . 2 . . . . . . . . . . . . . . Damage (minor) 2 | . . . 1 . . . . . . . . . . . . . 1 Damage (major) 1 | . . . . . . . . . . . . . . . . . 1 Siege Activations 1 | . . . . . . . . . . . . . . . . . 1 Total Turns 25 | . . . . . . . . . . . . . . . . . 25 Longest Duration 25 | . . . . . . . . . . . . . . . . . 25 Martial Activations . | . . . . . . . . . . . . . . . . . . Shielding Activations . | . . . . . . . . . . . . . . . . . . Robots Disrupted 1 | . . . . . . . . . . . . . . . 1 . . Combat Hostiles 1 | . . . . . . . . . . . . . . . 1 . . Robots Corrupted . | . . . . . . . . . . . . . . . . . . Combat Hostiles . | . . . . . . . . . . . . . . . . . . Parts Fried 5 | . . . . . . 1 . 3 . . . . 1 . . . . Impact Corruptions . | . . . . . . . . . . . . . . . . . . Robots Melted 13 | . . . . . 1 . . 4 1 1 . . . . 5 . 1 Combat Hostiles 11 | . . . . . 1 . . 2 1 1 . . . . 5 . 1 Parts Melted 65 | 2 4 1 . 2 7 14 2 15 2 4 . . . . 8 . 4 Heat Transferred 24300 | 777 1289 284 810 481 2960 4651 868 7739 629 703 50 629 . 359 1721 . 350 Parts Sabotaged . | . . . . . . . . . . . . . . . . . . Parts Stolen . | . . . . . . . . . . . . . . . . . . Parts Stripped . | . . . . . . . . . . . . . . . . . . Power Chain Reactions 3 | . . . . . . 1 . . . . . . . 1 . . 1 Alert | -11 -10 -10 -10 -9 -8 -8 -8 -6 -6 -6 -6 -5 -5 -5 -4 -4 -4 ------- Run | Yrd Mat Min Exi Min Mat Sto Rec Fac Low Low Dat Pro Fac DSF Fac Was Fac Maximum Alert Level 3 | . . . . . 1 2 1 3 . . . . 1 1 3 1 2 Low Security (%) 70 | 100 100 100 . 100 95 23 97 . . . . . 67 31 63 64 68 Level 1 8 | . . . . . 4 61 2 . . . . . 32 68 5 35 11 Level 2 15 | . . . . . . 14 . 61 . . . . . . 30 . 20 Level 3 5 | . . . . . . . . 38 . . . . . . . . . Level 4 . | . . . . . . . . . . . . . . . . . . Level 5 . | . . . . . . . . . . . . . . . . . . High Security . | . . . . . . . . . . . . . . . . . . Max Security . | . . . . . . . . . . . . . . . . . . Peak Influence 969 | 10 58 61 . 56 213 471 214 969 . . . . 222 326 758 260 478 Initial 559 | . . . . . . . 173 559 . . . . 150 148 170 260 77 Average 187 | 3 12 13 . 6 59 276 47 671 . . . . 179 241 256 182 177 Influence Increases 7487 | 30 169 206 . 121 718 848 289 1794 30 70 . 295 272 228 1196 10 1211 Destroy 0b10 Robot/C 3220 | . 100 140 . 80 400 500 80 500 20 60 . 240 60 100 460 . 480 Destroy 0b10 Robot/NC 545 | 30 15 5 . 25 90 45 20 160 . 10 . 5 . . 65 . 75 Destroy Leader 684 | . 12 30 . . 112 118 . 108 10 . . 20 30 30 130 . 84 Allied During Kill 27 | . . 16 . . . . 3 . . . . . . . 8 . . Successful Hack 142 | . 12 . . . 27 10 48 38 . . . . . . . . 7 Select Force Hacks 180 | . 30 . . . . . 120 . . . . . 30 . . . . Disable Machine 720 | . . . . . . 45 15 150 . . . . . 15 255 . 240 Anti-Garrison Action 200 | . . . . . . . . 200 . . . . . . . . . Destroy Structure 634 | . . . . 16 59 40 3 88 . . . . 2 8 218 10 190 Advance Influence 700 | . . . . . . . . 550 . . . . 150 . . . . Partial Spotted 15 | . . . . . . 15 . . . . . . . . . . . Lose Combat Pursuer 420 | . . 15 . . 30 75 . . . . . 30 . 75 60 . 135 Influence Decreases 7082 | 30 167 208 . 121 718 403 712 850 686 313 67 295 60 114 778 644 916 Entered New Map 1508 | . . 2 . . . . 272 13 358 59 67 . . 64 156 484 33 Time Decay 4296 | 30 167 166 . 111 354 363 433 577 318 254 . 285 60 . 542 140 496 Search Patrol Dispatched 150 | . . . . . . . . 150 . . . . . . . . . Lost Part 487 | . . 20 . 10 10 40 . 70 10 . . 10 . 20 60 . 237 Lost Ally 137 | . . 20 . . . . 7 40 . . . . . 30 20 20 . Purge Threat 504 | . . . . . 354 . . . . . . . . . . . 150 Squads Dispatched 46 | . 5 . . 1 2 6 . 9 . . . . 5 2 6 . 10 Investigation 17 | . 2 . . . 2 4 . 4 . . . . 2 . 2 . 1 Extermination 9 | . . . . . . . . 2 . . . . . . 3 . 4 Reinforcement 16 | . 3 . . 1 . 2 . 2 . . . . . 2 1 . 5 Assault 1 | . . . . . . . . 1 . . . . . . . . . Garrison 3 | . . . . . . . . . . . . . 3 . . . . Intercept . | . . . . . . . . . . . . . . . . . . Searches Triggered 1 | . . . . . . . . 1 . . . . . . . . . Construction Impeded 5 | . . . . 1 . 1 . 1 . . . . . . . . 2 Haulers Reinforced 3 | . . . . . . . . 1 . . . . . . . . 2 Active Scanning Responses . | . . . . . . . . . . . . . . . . . . Cargo Convoy Interrupts 1 | . . . . . . . . . . . . . . . . . 1 Stealth | -11 -10 -10 -10 -9 -8 -8 -8 -6 -6 -6 -6 -5 -5 -5 -4 -4 -4 --------- Run | Yrd Mat Min Exi Min Mat Sto Rec Fac Low Low Dat Pro Fac DSF Fac Was Fac Distress Signals 13 | . 3 . . . 2 3 . 1 . . . . . . 2 . 2 Communications Jammed 11 | . . . . . . . . . . . . . . . 11 . . Distress Signals 11 | . . . . . . . . . . . . . . . 11 . . Times Spotted 305 | . 15 8 9 16 35 38 3 39 1 3 4 14 3 11 45 7 54 Peak Tracking Total 20 | . 4 3 9 20 6 6 3 8 1 3 4 5 1 4 9 4 19 Tactical Retreats 16 | . . 1 1 . 1 2 . . . . . 1 . 3 3 1 3 Traps | -11 -10 -10 -10 -9 -8 -8 -8 -6 -6 -6 -6 -5 -5 -5 -4 -4 -4 ------- Run | Yrd Mat Min Exi Min Mat Sto Rec Fac Low Low Dat Pro Fac DSF Fac Was Fac Traps Triggered 10 | . 2 . . . 1 3 . 1 . . . . . 1 1 . 1 Indirectly 2 | . . . . . . 2 . . . . . . . . . . . Trap Hack Attempts 75 | . . . . . . . . 64 . . . . . . 11 . . Triggered 1 | . . . . . . . . 1 . . . . . . . . . Disarmed 1 | . . . . . . . . 1 . . . . . . . . . Reprogrammed 4 | . . . . . . . . 2 . . . . . . 2 . . Reused 6 | . . . 3 . . . . . . . 1 . . . . 2 . Traps Extracted 5 | . . . . . . . . 2 . . 1 . . . 2 . . Installed 8 | . . . 3 . . . . . . . 2 . . . . 2 1 Triggered . | . . . . . . . . . . . . . . . . . . Most Traps Carried 3 | . . 3 3 . . . . 2 2 2 2 1 1 1 3 3 1 Machines | -11 -10 -10 -10 -9 -8 -8 -8 -6 -6 -6 -6 -5 -5 -5 -4 -4 -4 ---------- Run | Yrd Mat Min Exi Min Mat Sto Rec Fac Low Low Dat Pro Fac DSF Fac Was Fac Machines Disabled 72 | . . . 23 . . 3 1 10 . . . 1 . 1 17 . 16 Max in Single Turn 5 | . . . 2 . . 1 1 4 . . . 1 . 1 5 . 3 Garrison Access 3 | . . . . . 1 1 . 1 . . . . . . . . . Machines Repaired . | . . . . . . . . . . . . . . . . . . Machines Dismantled . | . . . . . . . . . . . . . . . . . . Machines Sabotaged . | . . . . . . . . . . . . . . . . . . Overloaded Fab Kills . | . . . . . . . . . . . . . . . . . . Hacking | -11 -10 -10 -10 -9 -8 -8 -8 -6 -6 -6 -6 -5 -5 -5 -4 -4 -4 --------- Run | Yrd Mat Min Exi Min Mat Sto Rec Fac Low Low Dat Pro Fac DSF Fac Was Fac Machines Accessed 62 | . 4 . 3 . 11 8 12 5 2 1 4 1 3 . 4 . 4 Terminals 28 | . 2 . . . 8 4 6 3 . . . . 1 . 3 . 1 Fabricators 2 | . . . . . . . . 1 . . . . . . . . 1 Repair Stations 2 | . . . . . . 2 . . . . . . . . . . . Recycling Units 13 | . 2 . . . 1 1 5 . . . . . 1 . 1 . 2 Scanalyzers 1 | . . . . . 1 . . . . . . . . . . . . Garrison Access 4 | . . . . . 1 1 . 1 . . . . 1 . . . . Total Hacks 242 | . 13 . 3 . 54 24 62 19 2 1 31 1 8 . 11 . 13 Successful 132 | . 6 . 3 . 27 12 29 9 2 1 31 1 3 . 2 . 6 Failed 109 | . 7 . . . 26 12 33 10 . . . . 5 . 9 . 7 Catastrophic 19 | . . . . . 5 1 6 3 . . . . 2 . 1 . 1 Database Lockouts 1 | . . . . . 1 . . . . . . . . . . . . Manual 110 | . 8 . . . 35 11 36 8 . . . . 3 . 5 . 4 Terminals 109 | . 7 . . . 31 14 35 9 . . . . 2 . 8 . 3 Fabricators 8 | . . . . . . . . 7 . . . . . . . . 1 Repair Stations 7 | . . . . . . 7 . . . . . . . . . . . Recycling Units 53 | . 6 . . . 4 2 25 . . . . . 4 . 3 . 9 Scanalyzers 18 | . . . . . 18 . . . . . . . . . . . . Garrison Access 7 | . . . . . 1 1 . 3 . . . . 2 . . . . Terminal Hacks 70 | . 3 . 3 . 9 4 13 . 2 1 31 1 1 . 1 . 1 Record 15 | . . . 3 . . . . . . . 11 1 . . . . . Part Schematic 16 | . . . . . . . 5 . . . 11 . . . . . . Robot Schematic 7 | . . . . . . . 1 . . . 6 . . . . . . Robot Analysis 7 | . 3 . . . 2 . 2 . . . . . . . . . . Prototype ID Bank 6 | . . . . . 1 . 2 . . . 3 . . . . . . Open Door 4 | . . . . . . 1 . . 2 1 . . . . . . . Open DSF 2 | . . . . . . . . . . . . . 1 . 1 . . Branch Access Points 1 | . . . . . 1 . . . . . . . . . . . . Terminal Index 1 | . . . . . 1 . . . . . . . . . . . . Alert Level 1 | . . . . . 1 . . . . . . . . . . . . Unreport Threat 4 | . . . . . 3 . . . . . . . . . . . 1 Locate Traps 1 | . . . . . . 1 . . . . . . . . . . . Recall Investigation 1 | . . . . . . 1 . . . . . . . . . . . Registered Prototypes 1 | . . . . . . . 1 . . . . . . . . . . Zone Layout 1 | . . . . . . 1 . . . . . . . . . . . Release Object 2 | . . . . . . . 2 . . . . . . . . . . Fabricator Hacks 5 | . . . . . . . . 5 . . . . . . . . . Load Schematic 3 | . . . . . . . . 3 . . . . . . . . . Build 2 | . . . . . . . . 2 . . . . . . . . . Repair Station Hacks 5 | . . . . . . 5 . . . . . . . . . . . Scan Component 3 | . . . . . . 3 . . . . . . . . . . . Repair 2 | . . . . . . 2 . . . . . . . . . . . Recycling Unit Hacks 8 | . 2 . . . . . 4 . . . . . 1 . . . 1 Retrieve Components 8 | . 2 . . . . . 4 . . . . . 1 . . . 1 Scanalyzer 11 | . . . . . 11 . . . . . . . . . . . . Insert Component 5 | . . . . . 5 . . . . . . . . . . . . Analyze 6 | . . . . . 6 . . . . . . . . . . . . Garrison Access Hacks 2 | . . . . . 1 1 . . . . . . . . . . . Seal Access 2 | . . . . . 1 1 . . . . . . . . . . . Unauthorized Hacks 31 | . 1 . . . 6 2 12 4 . . . . 1 . 1 . 4 Terminals 13 | . . . . . 5 2 3 3 . . . . . . . . . Assimilate 1 | . . . . . . . . 1 . . . . . . . . . Botnet 12 | . . . . . 5 2 3 2 . . . . . . . . . Fabricators . | . . . . . . . . . . . . . . . . . . Repair Stations . | . . . . . . . . . . . . . . . . . . Recycling Units 17 | . 1 . . . 1 . 9 . . . . . 1 . 1 . 4 Monitor 1 | . . . . . . . . . . . . . . . . . 1 Reject 1 | . . . . . . . . . . . . . . . . . 1 Recyclers 2 | . . . . . . . 1 . . . . . . . . . 1 Mask 7 | . . . . . 1 . 4 . . . . . . . 1 . 1 Tunnel 6 | . 1 . . . . . 4 . . . . . 1 . . . . Scanalyzers . | . . . . . . . . . . . . . . . . . . Garrison Access 1 | . . . . . . . . 1 . . . . . . . . . Jam 1 | . . . . . . . . 1 . . . . . . . . . Data Cores Recovered . | . . . . . . . . . . . . . . . . . . Used . | . . . . . . . . . . . . . . . . . . Hacking Detections 45 | . 4 . . . 10 6 10 5 . . . . 3 . 4 . 3 Full Trace Events 22 | . . . . . 5 3 7 3 . . . . 1 . 2 . 1 Feedback Events . | . . . . . . . . . . . . . . . . . . Feedback Blocked . | . . . . . . . . . . . . . . . . . . Robot Schematics Acquired 7 | . . . . . . . 1 . . . 6 . . . . . . Robots Built . | . . . . . . . . . . . . . . . . . . Authchips . | . . . . . . . . . . . . . . . . . . Time . | . . . . . . . . . . . . . . . . . . Total Robot Build Rating . | . . . . . . . . . . . . . . . . . . Part Schematics Acquired 19 | . . . . . 3 . 5 . . . 11 . . . . . . Parts Built 2 | . . . . . . . . 2 . . . . . . . . . Authchips 2 | . . . . . . . . 2 . . . . . . . . . Time 72 | . . . . . . . . 72 . . . . . . . . . Total Part Build Rating 6 | . . . . . . . . 6 . . . . . . . . . Parts Repaired 2 | . . . . . . 2 . . . . . . . . . . . Time 195 | . . . . . . 195 . . . . . . . . . . . Parts Recycled . | . . . . . . . . . . . . . . . . . . Recycled Matter . | . . . . . . . . . . . . . . . . . . Retrieved Matter . | . . . . . . . . . . . . . . . . . . Retrieved Components 33 | . 11 . . . . . 18 . . . . . 1 . . . 3 Parts Scanalyzed 5 | . . . . . 5 . . . . . . . . . . . . Part Schematics Acquired 3 | . . . . . 3 . . . . . . . . . . . . Parts Damaged 3 | . . . . . 3 . . . . . . . . . . . . Bothacking | -11 -10 -10 -10 -9 -8 -8 -8 -6 -6 -6 -6 -5 -5 -5 -4 -4 -4 ------------ Run | Yrd Mat Min Exi Min Mat Sto Rec Fac Low Low Dat Pro Fac DSF Fac Was Fac Used RIF Installer . | . . . . . . . . . . . . . . . . . . Robots Hacked . | . . . . . . . . . . . . . . . . . . Non-combat . | . . . . . . . . . . . . . . . . . . Combat . | . . . . . . . . . . . . . . . . . . Robot Hacks Applied . | . . . . . . . . . . . . . . . . . . Relay Couplers Released . | . . . . . . . . . . . . . . . . . . Fabnet Peak Effective % . | . . . . . . . . . . . . . . . . . . Robots Rewired 8 | . . . . . . . 7 . . . . . . . 1 . . Allies Hacked . | . . . . . . . . . . . . . . . . . . Hacks Repelled . | . . . . . . . . . . . . . . . . . . Allies | -11 -10 -10 -10 -9 -8 -8 -8 -6 -6 -6 -6 -5 -5 -5 -4 -4 -4 -------- Run | Yrd Mat Min Exi Min Mat Sto Rec Fac Low Low Dat Pro Fac DSF Fac Was Fac Total Allies 13 | . . 3 . . . . 7 1 . . . . . . 1 1 . Largest Group 7 | . . 3 1 . . . 7 4 . . . . . . 1 1 . Highest-Rated Group 128 | . . 40 16 . . . 128 72 . . . . . . 49 46 . Highest-Rated Ally 49 | . . 16 16 . . . 27 27 . . . . . . 49 46 . Total Orders 6 | . . . 1 . . . 5 . . . . . . . . . . STAY 3 | . . . 1 . . . 2 . . . . . . . . . . FOLLOW 1 | . . . . . . . 1 . . . . . . . . . . PICKUP 2 | . . . . . . . 2 . . . . . . . . . . Ally Attacks 55 | . . 29 7 . . . 11 . . . . . . . 2 6 . Total Damage 710 | . . 254 79 . . . 118 . . . . . . . 72 187 . Kills 7 | . . 6 . . . . 1 . . . . . . . . . . Allies Corrupted . | . . . . . . . . . . . . . . . . . . Allies Melted . | . . . . . . . . . . . . . . . . . . Intel | -11 -10 -10 -10 -9 -8 -8 -8 -6 -6 -6 -6 -5 -5 -5 -4 -4 -4 ------- Run | Yrd Mat Min Exi Min Mat Sto Rec Fac Low Low Dat Pro Fac DSF Fac Was Fac Active Infowar (turns) 14379 | 36 472 . 410 543 1819 859 2724 1387 707 553 700 822 124 191 1544 282 1206 Optics 12271 | . . . . . 1765 859 2724 802 707 553 700 822 124 191 1544 282 1198 Structural 618 | . 2 . . 89 527 . . . . . . . . . . . . Seismic 2148 | 36 470 . 410 454 778 . . . . . . . . . . . . Decoding 8 | . . . . . . . . . . . . . . . . . 8 Cloaking 255 | . . . . . . . . . . . . . . . . . 255 Jamming 1599 | . . . . . . . . 585 . . . . 100 24 890 . . Robot Analysis Total 6 | . 3 . . . 2 . 1 . . . . . . . . . . Derelict Logs Recovered 3 | . . 2 . . . . . . 1 . . . . . . . . Drone Launches 11 | . . . . . . . . . . . . . . 11 . . . Drone Recoveries 2 | . . . . . . . . . . . . . . 2 . . . Exploration | -11 -10 -10 -10 -9 -8 -8 -8 -6 -6 -6 -6 -5 -5 -5 -4 -4 -4 ------------- Run | Yrd Mat Min Exi Min Mat Sto Rec Fac Low Low Dat Pro Fac DSF Fac Was Fac Turns Passed 19602 | 125 631 808 3822 745 1819 859 2724 1762 707 553 700 822 124 191 1544 282 1384 Spaces Moved 11508 | 54 442 638 1806 509 1371 557 1861 925 543 394 209 525 66 86 716 161 645 Core 155 | 54 55 . 30 . . . . . . . . . . . . . 16 Treads 466 | . . . . . . . 245 . . . . . . . 18 . 203 Legs 206 | . . . 7 60 . . . 12 . . 95 . . . 17 . 15 Wheels 8958 | . 387 638 1769 449 1371 557 925 685 543 394 114 525 1 . 98 161 341 Hover 913 | . . . . . . . 691 222 . . . . . . . . . Flight 810 | . . . . . . . . 6 . . . . 65 86 583 . 70 Fastest Speed 50 | 50 50 110 50 110 95 95 98 51 111 126 126 89 120 120 87 126 50 Average Speed 118 | 50 102 110 121 113 95 96 118 125 117 126 128 132 120 120 147 126 142 Slowest Speed 800 | 50 110 110 800 190 110 110 179 344 126 126 146 146 120 120 292 126 193 Overloaded Moves . | . . . . . . . . . . . . . . . . . . Propulsion Burnouts . | . . . . . . . . . . . . . . . . . . Robots Hopped 1 | . . . . . . . . . . . . . . . 1 . . Potential Cave-ins . | . . . . . . . . . . . . . . . . . . Cave-ins Triggered 2 | . . . . . . . . . . . . . . . 1 . 1 Exploration Rate (%) 58 | 4 58 94 93 86 71 60 99 26 70 63 76 68 3 66 18 79 17 Regions Visited 17 Branch Regions 9 Pre-discovered Areas 9 | . 1 . 1 . . . 4 . 1 . 1 . 1 . . . . Known Exits Taken 4 | . . . . . 1 . . 1 1 . . . 1 . . . . Unknown Exits Taken 10 | 1 1 1 1 1 . 1 1 . . 1 1 1 . . . . . Scrap Searched 8 | . . 1 . 3 . . . . 3 1 . . . . . . . Spaces Dug 59 | . . . 3 8 14 8 . 6 . 6 . . . 5 6 . 3 Terrain Destroyed 735 | . . . 187 17 61 36 3 103 . 8 12 47 4 9 129 7 112 Melee . | . . . . . . . . . . . . . . . . . . Projectile 217 | . . . 36 . 16 19 3 23 . 8 11 19 3 5 36 7 31 AOE 513 | . . . 150 17 45 17 . 80 . . . 28 . 2 93 . 81 Terrain Rammed . | . . . . . . . . . . . . . . . . . . Walls Destroyed . | . . . . . . . . . . . . . . . . . . Machines Disabled . | . . . . . . . . . . . . . . . . . . Actions | -11 -10 -10 -10 -9 -8 -8 -8 -6 -6 -6 -6 -5 -5 -5 -4 -4 -4 --------- Run | Yrd Mat Min Exi Min Mat Sto Rec Fac Low Low Dat Pro Fac DSF Fac Was Fac Total 16009 | 125 580 724 3223 631 1745 725 2336 1307 599 422 593 594 87 130 1033 202 953 Wait 2570 | 23 72 57 1136 42 110 40 380 94 33 1 303 20 5 . 131 3 120 Move 11490 | 53 441 637 1805 508 1370 556 1860 924 542 393 208 524 65 85 714 160 645 Hop 1 | . . . . . . . . . . . . . . . 1 . . Pick Up 187 | 11 23 5 31 4 38 7 6 17 5 3 7 3 1 . 13 3 10 Fast Attach 125 | 4 2 1 13 12 30 6 3 18 . . 5 1 1 3 13 1 12 Attach 76 | . 1 1 9 6 7 4 1 12 . 1 5 3 1 2 8 3 12 Detach 40 | . . . 4 6 3 2 . 6 . . 3 1 . 3 6 . 6 Swap 121 | . 8 4 12 11 21 13 2 16 2 . 5 3 . 4 10 4 6 Drop 255 | 6 7 7 35 12 71 10 13 25 6 3 11 2 2 1 27 1 16 Fire 963 | 28 26 12 175 30 95 86 25 131 9 21 44 36 12 21 91 25 96 Melee 26 | . . . . . . . . . . . . . . . . . 26 Ram 3 | . . . . . . . . . . . . . . . 3 . . Kick 3 | . . . . . . . . . . . . . . . . . 3 Crush . | . . . . . . . . . . . . . . . . . . Escape Stasis 9 | . . . . . . 1 . . . . . . . 8 . . . Rewire 54 | . . . . . . . 46 . 2 . . . . 1 5 . . Trap 83 | . . . 3 . . . . 64 . . 2 . . . 11 2 1 Miscellaneous 3 | . . . . . . . . . . . . 1 . 2 . . . Route ------- -11/Scrapyard -10/Materials (discovered 3 exits: [*Mat] / [*Min] / [*Sub]) -10/Mines (discovered 3 exits: [*Mat x2] / *Exi) -10/Exiles (discovered 2 exits: [*Min x2]) -9/Mines -8/Materials (discovered 4 exits: [*Fac x2] / *Sto x2) -8/Storage -8/Recycling -6/Factory (discovered 2 exits: *Fac / *Low) -6/Lower Caves -6/Lower Caves -6/Data Miner -5/Proximity Caves -5/Factory -5/DSF -4/Factory -4/Waste -4/Factory History --------- Turn | Location | Event 30 | -11/Scrapyard | Discovered new exit (range 16) 126 | -11/Scrapyard | Entered Materials 127 | -10/Materials | Met a group of wandering Federalists 264 | -10/Materials | Discovered new exit (range 5) 306 | -10/Materials | Build established: Mutant 340 | -10/Materials | Discovered new exit (range 8) 430 | -10/Materials | Discovered new exit (range 5) 757 | -10/Materials | Entered Mines 823 | -10/Mines | Assisted by bots powering up and referring to "LRC-V3" 833 | -10/Mines | Learned Materials stockpile data 842 | -10/Mines | Discovered new exit (range 5) 1084 | -10/Mines | Discovered new exit (range 8) 1189 | -10/Mines | Found a hidden stash of uninstalled traps 1282 | -10/Mines | Learned 2 Materials zone layouts 1293 | -10/Mines | Build established: Scavenger-Mutant 1359 | -10/Mines | A weapon hastily lodged in a ceiling crevice suddenly fell to the ground 1399 | -10/Mines | Deemed a non-threat by the Exiles lab entrance 1400 | -10/Mines | Discovered new exit (range 5) 1565 | -10/Mines | Entered Exiles 1565 | -10/Exiles | Accompanied by 1 ally 1604 | -10/Exiles | Met 8R-AWN 1621 | -10/Exiles | Met EX-HEX 1679 | -10/Exiles | Met EX-DEC 1698 | -10/Exiles | Visited The Gauntlet 1868 | -10/Exiles | Learned location of Zion (-7) 1902 | -10/Exiles | Build established: Mutant 1926 | -10/Exiles | Discovered new exit (range 14) 2021 | -10/Exiles | Met EX-BIN 2164 | -10/Exiles | Discovered new exit (range 15) 2639 | -10/Exiles | Warned about trapping Exiles lab 2642 | -10/Exiles | Attacked by the Exiles 2649 | -10/Exiles | Found Prototype Ballistic Gun 2649 | -10/Exiles | Identified 8R-AWN's Boregun 2652 | -10/Exiles | Found 8R-AWN's Boregun 2695 | -10/Exiles | System corruption reached 10% 2725 | -10/Exiles | Lost 3 parts (2n1u) 5220 | -10/Exiles | Destroyed 8R-AWN 5244 | -10/Exiles | Found Prototype Device 5244 | -10/Exiles | Identified AS-neutralizer No. 17b 5308 | -10/Exiles | Found Prototype Processor 5387 | -10/Exiles | Entered Mines 5388 | -9/Mines | Assembled infested the area 5393 | -9/Mines | Assisted by a Guerilla fighting off Assembled 5513 | -9/Mines | Lost 4 parts (2n1u1w) 5755 | -9/Mines | Build established: Scavenger-Mutant 5818 | -9/Mines | Received a Rocket Launcher from a helpful Derelict 6067 | -9/Mines | Discovered new exit (range 2) 6132 | -9/Mines | Entered Materials 6132 | -8/Materials | Evolved 4 slots: Propulsion x1, Utility x3 6973 | -8/Materials | Discovered new exit (range 10) 7069 | -8/Materials | Identified exit to Storage 7378 | -8/Materials | Central database locked down 7580 | -8/Materials | Build established: Mutant 7726 | -8/Materials | Discovered new exit (range 17) 7792 | -8/Materials | Identified Exp. Targeting Computer 7951 | -8/Materials | Entered Storage 8319 | -8/Storage | Repaired Broken Adv. Weapon Cycler? 8440 | -8/Storage | Repaired Broken Exp. Targeting Computer 8585 | -8/Storage | Used back door to open Recycling access 8585 | -8/Storage | Discovered new exit (range 3) 8810 | -8/Storage | Entered Recycling 9044 | -8/Recycling | Discovered new exit (range 17) 9450 | -8/Recycling | Build established: Commander-Mutant 9480 | -8/Recycling | Scanned before Scraplab entrance 9500 | -8/Recycling | Angered Scraplab inhabitants 9526 | -8/Recycling | Core integrity fell below 50% 9797 | -8/Recycling | Found Prototype Device 9797 | -8/Recycling | Identified Scrap Engine 10359 | -8/Recycling | Build established: Commander-Construct 11534 | -8/Recycling | Entered Factory 11534 | -6/Factory | Accompanied by 4 allies 11534 | -6/Factory | Evolved 4 slots: Propulsion x2, Utility x1, Weapon x1 11723 | -6/Factory | Lost 3 allies 11884 | -6/Factory | Search patrols dispatched 12234 | -6/Factory | First assault squad dispatched 12633 | -6/Factory | Fabricated Hacking Suite (x1) 12644 | -6/Factory | P-60 Hacker assimilated allied Administrator 5a 12671 | -6/Factory | Fabricated System Shield (x1) 12794 | -6/Factory | Discovered new exit (range 16) 13042 | -6/Factory | Build established: Construct 13048 | -6/Factory | Discovered new exit (range 13) 13132 | -6/Factory | Identified exit to Lower Caves 13296 | -6/Factory | Entered Lower Caves 13388 | -6/Lower Caves | Found Prototype Device 13600 | -6/Lower Caves | Spotted B-75 Beast 13607 | -6/Lower Caves | Destroyed B-75 Beast 13881 | -6/Lower Caves | Discovered new exit (range 17) 13901 | -6/Lower Caves | Identified exit to Lower Caves 13961 | -6/Lower Caves | Found DRS Beacon 14003 | -6/Lower Caves | Entered another Lower Caves area 14103 | -6/Lower Caves | Ambushed by research squad 14274 | -6/Lower Caves | Encountered a Warlord checkpoint 14436 | -6/Lower Caves | Discovered new exit (range 5) 14556 | -6/Lower Caves | Entered Data Miner 14556 | -6/Data Miner | Discovered new exit (range 6) 14575 | -6/Data Miner | Met Data Miner 14607 | -6/Data Miner | Learned location of Section 7 (-2) 14607 | -6/Data Miner | Acquired the access code to Warlord's prototype stash 14623 | -6/Data Miner | Received God Mode back door access code from Data Miner 14686 | -6/Data Miner | Data Conduit disabled 14730 | -6/Data Miner | Lost 4 parts (1p1n2w) 14734 | -6/Data Miner | Found Prototype Device 14734 | -6/Data Miner | Identified Exp. Thermal Shield 15256 | -6/Data Miner | Entered Proximity Caves 15263 | -5/Proximity Caves | Activated DRS Beacon 15273 | -5/Proximity Caves | Core integrity fell below 50% 15341 | -5/Proximity Caves | Found Alien Artifact 15359 | -5/Proximity Caves | Spotter reported a threat 16018 | -5/Proximity Caves | Discovered new exit (range 17) 16078 | -5/Proximity Caves | Entered Factory 16078 | -5/Factory | Evolved 2 slots: Propulsion x1, Utility x1 16202 | -5/Factory | Identified exit to DSF 16202 | -5/Factory | Entered DSF 16229 | -5/DSF | Discovered new exit (range 22) 16252 | -5/DSF | Additional patrols routed to DSF 16343 | -5/DSF | Lost 3 allies 16393 | -5/DSF | Entered Factory 16393 | -4/Factory | Evolved 2 slots: Utility x1, Weapon x1 16681 | -4/Factory | Spotted B-86 Titan 16692 | -4/Factory | Destroyed B-86 Titan 17034 | -4/Factory | Found Tesla Bomb Launcher 17366 | -4/Factory | Crushed by falling debris 17390 | -4/Factory | Identified Dimensional Node Initializer 17390 | -4/Factory | Initialized slip node 17818 | -4/Factory | System corruption reached 10% 17937 | -4/Factory | Manually triggered Chute Trap 17937 | -4/Factory | Sucked down chute 17937 | -4/Factory | Entered Waste 17938 | -4/Waste | Met a frightened Derelict 17939 | -4/Waste | Spotted C-40 Crusher 17952 | -4/Waste | EMP discharged 17976 | -4/Waste | Spotted C-40 Crusher 18017 | -4/Waste | Destroyed C-40 Crusher 18036 | -4/Waste | Spotted C-40 Crusher 18052 | -4/Waste | EMP discharged 18055 | -4/Waste | Spotted C-40 Crusher 18064 | -4/Waste | Spotted C-40 Crusher 18065 | -4/Waste | Spotted C-40 Crusher 18072 | -4/Waste | Destroyed C-40 Crusher 18077 | -4/Waste | Destroyed C-40 Crusher 18093 | -4/Waste | Destroyed C-40 Crusher 18132 | -4/Waste | Destroyed C-40 Crusher 18152 | -4/Waste | EMP discharged 18152 | -4/Waste | System corruption reached 30% 18156 | -4/Waste | Destroyed C-40 Crusher 18168 | -4/Waste | Found Unknown Protection 18204 | -4/Waste | Discovered new exit (range 10) 18219 | -4/Waste | Entered Factory 18372 | -4/Factory | Found Heavy Servo Lattice 18938 | -4/Factory | Spotted B-86 Titan 18987 | -4/Factory | Spotted B-86 Titan 19116 | -4/Factory | Core integrity fell below 50% 19356 | -4/Factory | Lost 9 parts (1p3n2u3w) 19372 | -4/Factory | Found Prototype Processor 19372 | -4/Factory | Identified Exp. Signal Interpreter 19418 | -4/Factory | Identified Heart of Steel 19535 | -4/Factory | Build established: Mutant 19582 | -4/Factory | Cargo convoy interrupted 19584 | -4/Factory | Spotted Striker 19584 | -4/Factory | Identified Damper Plating 19590 | -4/Factory | Crushed by falling debris 19590 | -4/Factory | Core integrity fell below 20% 19603 | -4/Factory | Destroyed by A-27 Freighter with PD Laser Last Messages --------------- 19596_ Hovering Gravjet-FC Exoskeleton core remains intact and functional. 19596_ Penetrated by Slug. 19596_ Slug penetrates Fabricator. 19596_ Hovering Gravjet-FC Exoskeleton destroyed. 19597_ K-01 Serf collects debris. 19597_ Centrium Wheel destroyed. 19598_ Slug penetrates Fabricator. 19599_ Penetrated by Slug. 19599_ Slug penetrates Fabricator. 19599_ Slug penetrates S-27 Virus. 19599_ Slug penetrates I-47 Archangel. 19599_ Slug penetrates Power Conduit. 19599_ Slug penetrates Fabricator. 19599_ Penetrated by Slug. 19600_ P-70 Sage resets H-77 Assassin, system corruption cleaned. 19601_ K-01 Serf collects debris. 19603_ Centrium Wheel destroyed. Map ----- +----------------------------------------------------+ | ?????????????????????????????????????????????????? | | ?????????????????????????????????????????????????? | | ??????????????R??????????????????????????????????? | | ??????????? ?????????????????????????????????? | | ??????????# #????????????????????????????????? | | ?????? ???# % #????????????????????????????????? | | ????? ??# ###############??????????????????? | | ????? ?# ??????????????????? | | ????? = ?# ?????????????????? | | ????? # """""????????????????? | | ??????! # ????????????????? | | ??????? # """"""???????????????? | | ???????? ?R?????????????? | | ?????????# R """"""???????????????? | | ?????????# s ???????????????? | | ????????## """""""""????????????? | | ????????# i k ?????????????? | | ?????????## =!! """"""""" ? #????????? | | ?????????#"%!%%!= #????????? | | ??????????#!!!=!!! "" # """"""""" #????????? | | ??????????##!!!!" F""## A #????????? | | ???????????##!#""""""## """"""""" #????????? | | ????????????# # """" ## #????????? | | ????????????#?######### """"""""" #????????? | | ??????????????????????# K ##???????? | | ??????????????????????# @ ;#???????? | | ??????????????????????# % A;##??????? | | ??????????????????????# "###????? | | ??????????????????????# #????? | | ??????????????????????# u ###### | | ??????????????????????# | | ??????????????????????# u #? | | ??????????????????????# #? | | ??????????????????????# % #? | | ??????????????????????# k #? | | ??????????????????????# k % ## | | ??????????????????????# ## | | ??????????????????????# ## | | ??????????????????????# ^^ #### ## | | ??????????????????????#R #### ## | | ????????????????????? #??# ## | | ????????????????????? #??# ## | | ?????????R????????????! #??# * ## | | ??????????????????????! #??# ! ! | | ??????????????????????? ???# % | | ???????????????????????? = ???# % | | ???????????????????????? ???########/### | | ?????????????????????????? ?????????# ## | | ???????????????????????????" ??????????# ## | | ???????????????????????????? ###??????????# ## | +----------------------------------------------------+ Best States ------------- Heat Dissipation 105 Energy Generation 35 Energy Capacity 747 Matter Stores 300 Matter Capacity 600 Sight Range 22 Terrain Scan Density 10 Jamming Range 12 Cloak Strength 4 Additional Mass Support 12 Base Temperature (-) 150 EM Shielding 2 Armor Coverage 1600 Resistance: TH 30 Resistance: EM 90 Weapon Cycling 25 Evasion (%) 55 Targeting Accuracy 12 Core Analysis 6 Armor Integrity Analysis 40 Recoil Reduction 6 Particle Charging 25 Kinecelleration 40 Defensive Hacking 10 Authchip Count 3 Trap Extractor Capacity 6 Item Schematics ----------------- Adv. Weapon Cycler | -8/Materials | Scanalyzed Exp. Targeting Computer | -8/Materials | Scanalyzed Exp. Heat Sink | -8/Materials | Scanalyzed Hcp. Storage Unit | -8/Recycling | Hacked Plasma Cutter | -8/Recycling | Hacked Hacking Suite | -8/Recycling | Hacked System Shield | -8/Recycling | Hacked Energy Well | -8/Recycling | Hacked Combat Drone Bay | -6/Data Miner | Free Lgt. Regenerative Plating | -6/Data Miner | Free Enh. Flexi-carbon Leg | -6/Data Miner | Free Prc. Matter Filter | -6/Data Miner | Free Tesla Bomb Launcher | -6/Data Miner | Free Adv. Medium Treads | -6/Data Miner | Free Adv. Transmission Jammer | -6/Data Miner | Free Adv. Component Analysis Suite | -6/Data Miner | Free Cmb. Gravmag System | -6/Data Miner | Free Micro-nuke Launcher | -6/Data Miner | Free Imp. Heavy Siege Treads | -6/Data Miner | Free Robot Schematics ------------------ O-16 Technician | -8/Recycling | Hacked Y-54 Guardian | -6/Data Miner | Free Y-64 Sentinel | -6/Data Miner | Free B-60 Warrior | -6/Data Miner | Free A-15 Conveyor | -6/Data Miner | Free G-50 Soldier | -6/Data Miner | Free E-15 Imp | -6/Data Miner | Free Fabricated ------------ Hacking Suite | x1 | -6/Factory | Authchip System Shield | x1 | -6/Factory | Authchip Repaired ---------- Adv. Weapon Cycler | 34% | -8/Storage | Broken Exp. Targeting Computer | 90% | -8/Storage | Broken Alien Tech Used ----------------- Dimensional Node Initializer Achievements -------------- None Challenges ------------ None Game ------ Seed StormSkeletonLauncher Manual? 0 Play Time 03:30:28 Cumulative 212.1 hours Start 2025.05.29 @ 20:36:56 End 2025.05.30 @ 12:40:46 Sessions 3 Manual Loads 0 Difficulty Rogue Special Mode None Game No. 224 Rogue 224 Adventurer 0 Explorer 0 Win Type - Total 1 Types 1/0/0/0/0/0/0/0/0/0 Lore% 73 Gallery% 72 Achievement% 64 Wizard Run 0 Options --------- Layout 1 ASCII 0 Keyboard 0 Movement Numpad Keybinds 0 Fullscreen 1 Font 24/Smallcaps Map View 50x35 Zoom Use 0% Tactical HUD 1 Map Filters NONE Filters NONE Steam 1 RUN: 8614b4fc-0f87-4d51-b119-965db3430d32